fUST/lending_fUST_20240409
["ID","MTS","AMOUNT","RATE_DAILY","PERIOD"]
[321928064,1712639447859,-835.81,0.00036164,5]
[321928065,1712639447868,-500.0,0.00036164,5]
[321928066,1712639447878,-500.0,0.00036164,5]
[321928067,1712639447887,-500.0,0.00036164,5]
[321928068,1712639447897,-500.0,0.00036164,5]
[321928069,1712639447906,-500.0,0.00036164,5]
[321928070,1712639447916,-500.0,0.00036164,5]
[321928071,1712639447925,-500.0,0.00036164,5]
[321928072,1712639447935,-500.0,0.00036164,5]
[321928073,1712639447944,-1267.08,0.00036164,5]
[321928074,1712639447954,-680.33,0.00036164,5]
[321928075,1712639447963,-1226.82,0.00036164,5]
[321928076,1712639447973,-500.0,0.00036164,5]
[321928077,1712639447981,-500.0,0.00036164,5]
[321928078,1712639447990,-500.0,0.00036164,5]
[321928079,1712639448000,-500.0,0.00036164,5]
[321928080,1712639448009,-505.66510622,0.00036164,5]
[321928081,1712639448018,-502.31197,0.00036164,5]
[321928082,1712639448028,-513.18,0.00036164,5]
[321928083,1712639448038,-502.30811741,0.00036164,5]
[321928084,1712639448047,-203.73528161,0.00036164,5]
[321928085,1712639448057,-1928.18,0.00036164,2]
[321928086,1712639448066,-500.0,0.00036164,5]
[321928087,1712639448075,-907.03,0.00036164,5]
[321928088,1712639448085,-500.0,0.00036164,5]
[321928089,1712639448095,-503.61657073,0.00036164,5]
[321928090,1712639448104,-500.0,0.00036164,5]
[321928091,1712639448113,-500.0,0.00036164,5]
[321928092,1712639448122,-597.89,0.00036164,5]
[321928093,1712639448131,-500.0,0.00036164,5]
[321928094,1712639448140,-500.0,0.00036164,5]
[321928095,1712639448150,-300.0,0.00036164,5]
[321928096,1712639448159,-840.71,0.00036164,5]
[321928097,1712639448169,-500.0,0.00036164,5]
[321928098,1712639448178,-500.0,0.00036164,5]
[321928099,1712639448188,-502.76,0.00036164,5]
[321928100,1712639448197,-500.0,0.00036164,5]
[321928101,1712639448206,-151.0,0.00036164,2]
[321928102,1712639448216,-500.0,0.00036164,5]
[321928103,1712639448225,-500.0,0.00036164,5]
[321928104,1712639448235,-500.0,0.00036164,5]
[321928105,1712639448245,-500.0,0.00036164,5]
[321928106,1712639448255,-913.71,0.00036164,5]
[321928107,1712639448265,-500.0,0.00036164,5]
[321928108,1712639448274,-500.0,0.00036164,5]
[321928109,1712639448283,-500.0,0.00036164,5]
[321928110,1712639448354,-1557.445902,0.00036164,2]
[321928111,1712639448363,-1557.445902,0.00036164,2]
[321928112,1712639448372,-500.0,0.00036164,5]
[321928113,1712639448381,-500.0,0.00036164,5]
[321928114,1712639448390,-540.23,0.00036164,5]
[321928115,1712639448402,-5915.35,0.00036164,5]
[321928116,1712639448411,-500.0,0.00036164,5]
[321928117,1712639448420,-374.5924307,0.00036164,5]
[321928118,1712639448429,-151.0,0.00036164,2]
[321928119,1712639448439,-151.0,0.00036164,2]
[321928120,1712639448449,-500.0,0.00036164,5]
[321928121,1712639448458,-10395.06,0.00036164,5]
[321928122,1712639448467,-151.0,0.00036164,2]
[321928123,1712639448477,-280.576899,0.00036164,2]
[321928124,1712639448487,-500.0,0.00036164,5]
[321928125,1712639448496,-3164.62,0.00036164,5]
[321928126,1712639448505,-500.0,0.00036164,5]
[321928127,1712639448523,-1615.82,0.00036164,5]
[321928128,1712639448532,-154.528505,0.00036164,2]
[321928129,1712639448542,-2100.67,0.00036164,5]
[321928130,1712639448551,-154.528505,0.00036164,2]
[321928131,1712639448560,-500.0,0.00036164,5]
[321928132,1712639448569,-500.0,0.00036164,5]
[321928133,1712639448578,-500.0,0.00036164,5]
[321928134,1712639448587,-505.60819055,0.00036164,5]
[321928135,1712639448597,-1310.98,0.00036164,5]
[321928136,1712639448606,-500.0,0.00036164,5]
[321928137,1712639448615,-500.0,0.00036164,5]
[321928138,1712639448625,-625.99,0.00036164,5]
[321928139,1712639448635,-500.0,0.00036164,5]
[321928140,1712639448644,-505.39825563,0.00036164,5]
[321928141,1712639448653,-500.0,0.00036164,5]
[321928142,1712639448663,-500.0,0.00036164,5]
[321928143,1712639448673,-266.080331,0.00036164,2]
[321928144,1712639448683,-993.73,0.00036164,5]
[321928145,1712639448693,-266.080331,0.00036164,2]
[321928146,1712639448703,-500.0,0.00036164,5]
[321928147,1712639448713,-653.71,0.00036164,5]
[321928148,1712639448723,-4755.24,0.00036164,5]
[321928149,1712639448733,-500.0,0.00036164,5]
[321928150,1712639448742,-2418.29,0.00036164,5]
[321928151,1712639448753,-500.0,0.00036164,5]
[321928152,1712639448763,-500.0,0.00036164,5]
[321928153,1712639448773,-1040.33,0.00036164,5]
[321928154,1712639448783,-500.0,0.00036164,5]
[321928155,1712639448794,-151.0,0.00036164,2]
[321928156,1712639448804,-151.0,0.00036164,2]
[321928157,1712639448822,-2624.12,0.00036164,5]
[321928158,1712639448843,-5641.18,0.00036164,5]
[321928159,1712639448865,-1846.43,0.00036164,5]
[321928160,1712639448889,-500.0,0.00036164,5]
[321928161,1712639448898,-2504.96,0.00036164,5]
[321928162,1712639448907,-3365.38,0.00036164,5]
[321928163,1712639448916,-500.0,0.00036164,5]
[321928164,1712639448926,-503.87987524,0.00036164,5]
[321928165,1712639448935,-817.39,0.00036164,5]
[321928166,1712639448944,-1252.57,0.00036164,5]
[321928167,1712639448953,-500.0,0.00036164,5]
[321928168,1712639448962,-500.0,0.00036164,5]
[321928169,1712639448971,-500.0,0.00036164,5]
[321928170,1712639448980,-839.1,0.00036164,5]
[321928171,1712639448990,-500.0,0.00036164,5]
[321928172,1712639448999,-500.0,0.00036164,5]
[321928174,1712639449009,-500.0,0.00036164,5]
[321928175,1712639449018,-500.0,0.00036164,5]
[321928176,1712639449028,-3128.32,0.00036164,5]
[321928177,1712639449037,-151.0,0.00036164,2]
[321928178,1712639449046,-500.0,0.00036164,5]
[321928180,1712639449055,-977.93,0.00036164,5]
[321928182,1712639449064,-500.0,0.00036164,5]
[321928184,1712639449074,-151.0,0.00036164,2]
[321928185,1712639449083,-500.0,0.00036164,5]
[321928186,1712639449092,-500.0,0.00036164,5]
[321928188,1712639449101,-500.0,0.00036164,5]
[321928189,1712639449110,-28978.62,0.00036164,5]
[321928190,1712639449120,-504.42821858,0.00036164,5]
[321928192,1712639449130,-240.0912655,0.00036164,5]
[321928194,1712639449139,-6228.95,0.00036164,5]
[321928196,1712639449149,-647.996007,0.00036164,2]
[321928198,1712639449158,-1972.48,0.00036164,5]
[321928200,1712639449167,-500.0,0.00036164,5]
[321928202,1712639449176,-500.0,0.00036164,5]
[321928204,1712639449186,-647.996007,0.00036164,2]
[321928206,1712639449195,-500.0,0.00036164,5]
[321928208,1712639449204,-151.0,0.00036164,2]
[321928210,1712639449213,-151.0,0.00036164,2]
[321928212,1712639449222,-500.0,0.00036164,5]
[321928214,1712639449232,-500.0,0.00036164,5]
[321928216,1712639449241,-500.0,0.00036164,5]
[321928218,1712639449250,-6567.31,0.00036164,5]
[321928219,1712639449259,-151.0,0.00036164,2]
[321928222,1712639449269,-8899.76,0.00036164,5]
[321928224,1712639449278,-500.0,0.00036164,5]
[321928226,1712639449287,-500.0,0.00036164,5]
[321928228,1712639449297,-1602.23,0.00036164,5]
[321928230,1712639449308,-500.0,0.00036164,5]
[321928232,1712639449317,-1086.3,0.00036164,5]
[321928234,1712639449327,-28390.72,0.00036164,5]
[321928236,1712639449336,-180.12298975,0.00036164,5]
[321928238,1712639449348,-3658.23,0.00036164,5]
[321928240,1712639449358,-3094.83,0.00036164,5]
[321928242,1712639449367,-505.64,0.00036164,5]
[321928244,1712639449377,-500.0,0.00036164,5]
[321928246,1712639449386,-500.0,0.00036164,5]
[321928248,1712639449395,-151.0,0.00036164,2]
[321928250,1712639449404,-500.0,0.00036164,5]
[321928252,1712639449413,-1578.15,0.00036164,5]
[321928254,1712639449422,-1221.28,0.00036164,5]
[321928256,1712639449431,-2057.31,0.00036164,5]
[321928258,1712639449441,-1406.05,0.00036164,5]
[321928260,1712639449449,-500.0,0.00036164,5]
[321928262,1712639449458,-335.738886,0.00036164,2]
[321928264,1712639449467,-500.0,0.00036164,5]
[321928266,1712639449477,-335.738886,0.00036164,2]
[321928268,1712639449486,-335.738886,0.00036164,2]
[321928269,1712639449495,-335.738886,0.00036164,2]
[321928272,1712639449505,-8609.09,0.00036164,5]
[321928274,1712639449514,-2037.40904042,0.00036176,2]
[321928275,1712639449523,-249.34736369,0.0003627,4]
[321928276,1712639449532,-158.47263869,0.0003627,4]
[321928277,1712639449541,-263.37349984,0.0003627,4]
[321928278,1712639449551,-156.54809607,0.0003627,4]
[321928279,1712639449560,-188.58893471,0.0003627,2]
[321928280,1712639449569,-1166.47225466,0.00036271,4]
[321928281,1712639449579,-28975.80267128,0.00036271,4]
[321928282,1712639449588,-632.95,0.00036271,5]
[321928283,1712639449597,-2190.06,0.00036271,5]
[321928284,1712639449607,-500.0,0.00036271,5]
[321928285,1712639449672,-3438.14,0.00036271,5]
[321928286,1712639449681,-500.0,0.00036271,5]
[321928287,1712639449692,-500.0,0.00036271,5]
[321928288,1712639449701,-153.20965356,0.00036271,5]
[321928289,1712639449710,-151.0,0.00036271,2]
[321928290,1712639449719,-500.0,0.00036271,5]
[321928291,1712639449729,-500.0,0.00036271,5]
[321928292,1712639449738,-500.0,0.00036271,5]
[321928293,1712639449748,-1052.79,0.00036271,5]
[321928294,1712639449757,-500.0,0.00036271,5]
[321928295,1712639449767,-249.18506331,0.00036271,5]
[321928296,1712639449776,-556.6,0.00036271,5]
[321928297,1712639449785,-500.0,0.00036271,5]
[321928298,1712639449794,-500.0,0.00036271,5]
[321928299,1712639449803,-500.0,0.00036271,5]
[321928300,1712639449813,-500.0,0.00036271,5]
[321928301,1712639449826,-705.17,0.00036271,5]
[321928302,1712639449835,-1840.23,0.00036271,5]
[321928303,1712639449844,-500.0,0.00036271,5]
[321928304,1712639449853,-553.67930524,0.00036271,5]
[321928305,1712639449862,-500.0,0.00036271,5]
[321928306,1712639449872,-500.0,0.00036271,5]
[321928307,1712639449880,-500.0,0.00036271,5]
[321928308,1712639449890,-151.0,0.00036271,2]
[321928309,1712639449899,-168.787488,0.00036271,2]
[321928310,1712639449910,-500.0,0.00036271,5]
[321928311,1712639449919,-647.996007,0.00036271,2]
[321928312,1712639449928,-647.996007,0.00036271,2]
[321928313,1712639449939,-500.0,0.00036271,5]
[321928314,1712639449947,-151.0,0.00036271,2]
[321928315,1712639449957,-151.0,0.00036271,2]
[321928316,1712639449967,-151.0,0.00036271,2]
[321928317,1712639449976,-500.0,0.00036271,5]
[321928318,1712639449986,-500.0,0.00036271,5]
[321928319,1712639449995,-151.0,0.00036271,2]
[321928320,1712639450005,-500.0,0.00036271,5]
[321928321,1712639450015,-500.0,0.00036271,5]
[321928322,1712639450024,-500.0,0.00036272,5]
[321928323,1712639450034,-503.40518269,0.00036272,5]
[321928324,1712639450043,-189.67699352,0.00036272,5]
[321928325,1712639450052,-500.0,0.00036272,5]
[321928326,1712639450062,-500.0,0.00036272,5]
[321928327,1712639450071,-826.12,0.00036272,5]
[321928328,1712639450080,-500.0,0.00036272,5]
[321928329,1712639450089,-595.56,0.00036272,5]
[321928330,1712639450098,-1140.37,0.00036272,5]
[321928331,1712639450108,-500.0,0.00036272,5]
[321928332,1712639450117,-531.15175405,0.00036272,5]
[321928333,1712639450126,-500.0,0.00036272,5]
[321928334,1712639450135,-500.0,0.00036272,5]
[321928335,1712639450145,-1952.48,0.00036272,5]
[321928336,1712639450155,-500.0,0.00036272,5]
[321928337,1712639450165,-500.0,0.00036272,5]
[321928338,1712639450174,-3471.98,0.00036272,5]
[321928339,1712639450184,-500.0,0.00036272,5]
[321928341,1712639450194,-151.0,0.00036272,2]
[321928342,1712639450205,-151.0,0.00036272,2]
[321928343,1712639450215,-151.0,0.00036272,2]
[321928345,1712639450225,-500.0,0.00036272,5]
[321928347,1712639450234,-154.528505,0.00036272,2]
[321928349,1712639450243,-154.528505,0.00036272,2]
[321928351,1712639450252,-266.080331,0.00036272,2]
[321928353,1712639450262,-266.080331,0.00036272,2]
[321928355,1712639450272,-151.0,0.00036272,2]
[321928356,1712639450282,-192.591485,0.00036272,2]
[321928359,1712639450292,-500.0,0.00036272,5]
[321928360,1712639450303,-515.12,0.00036272,5]
[321928362,1712639450314,-500.0,0.00036272,5]
[321928364,1712639450325,-500.0,0.00036273,5]
[321928366,1712639450336,-500.0,0.00036273,5]
[321928368,1712639450346,-500.0,0.00036273,5]
[321928371,1712639450356,-500.0,0.00036273,5]
[321928373,1712639450368,-500.0,0.00036273,5]
[321928374,1712639450378,-500.0,0.00036273,5]
[321928377,1712639450388,-529.81993252,0.00036273,5]
[321928378,1712639450398,-500.0,0.00036273,5]
[321928380,1712639450408,-292.04228706,0.00036273,5]
[321928382,1712639450418,-500.0,0.00036273,5]
[321928384,1712639450431,-500.0,0.00036273,5]
[321928387,1712639450445,-773.296835,0.00036273,2]
[321928389,1712639450455,-773.296835,0.00036273,2]
[321928390,1712639450466,-151.0,0.00036437,2]
[321928392,1712639450476,-151.0,0.00036437,2]
[321928394,1712639450485,-151.0,0.00036437,2]
[321928396,1712639450495,-151.0,0.00036437,2]
[321928398,1712639450505,-151.0,0.00036437,2]
[321928400,1712639450515,-1557.445902,0.00036437,2]
[321928402,1712639450525,-1557.445902,0.00036437,2]
[321928404,1712639450535,-500.0,0.00036438,5]
[321928406,1712639450546,-1287.33,0.00036438,5]
[321928408,1712639450557,-500.0,0.00036438,5]
[321928410,1712639450567,-500.0,0.00036438,5]
[321928412,1712639450577,-151.0,0.00036438,2]
[321928414,1712639450587,-500.0,0.00036438,5]
[321928416,1712639450597,-162.214015,0.00036438,2]
[321928418,1712639450607,-500.0,0.00036438,5]
[321928420,1712639450617,-406.25502332,0.00036438,5]
[321928422,1712639450628,-500.0,0.00036438,5]
[321928424,1712639450637,-500.0,0.00036438,5]
[321928426,1712639450647,-166.29590232,0.00036438,5]
[321928428,1712639450657,-500.0,0.00036438,5]
[321928430,1712639450667,-501.25544222,0.00036438,5]
[321928432,1712639450677,-527.96,0.00036438,5]
[321928434,1712639450689,-1961.66,0.00036438,5]
[321928436,1712639450698,-500.0,0.00036438,5]
[321928439,1712639450708,-865.32,0.00036438,5]
[321928441,1712639450717,-835.81,0.00036438,5]
[321928443,1712639450727,-500.0,0.00036438,5]
[321928445,1712639450737,-500.0,0.00036438,5]
[321928446,1712639450746,-500.0,0.00036438,5]
[321928448,1712639450755,-500.0,0.00036438,5]
[321928450,1712639450765,-500.0,0.00036438,5]
[321928452,1712639450775,-500.0,0.00036438,5]
[321928454,1712639450784,-500.0,0.00036438,5]
[321928456,1712639450793,-278.95946307,0.00036438,5]
[321928458,1712639450802,-773.296835,0.00036438,2]
[321928460,1712639450812,-773.296835,0.00036438,2]
[321928468,1712639450875,-1267.08,0.00036438,5]
[321928470,1712639450893,-680.33,0.00036438,5]
[321928472,1712639450906,-1226.82,0.00036438,5]
[321928474,1712639450917,-500.0,0.00036438,5]
[321928476,1712639450928,-500.0,0.00036438,5]
[321928478,1712639450947,-500.0,0.00036438,5]
[321928480,1712639450957,-500.0,0.00036438,5]
[321928482,1712639450967,-513.18,0.00036438,5]
[321928484,1712639450977,-151.0,0.00036438,2]
[321928486,1712639450987,-1928.18,0.00036438,2]
[321928488,1712639450996,-500.0,0.00036438,5]
[321928490,1712639451007,-907.03,0.00036438,5]
[321928492,1712639451016,-500.0,0.00036438,5]
[321928494,1712639451025,-500.0,0.00036438,5]
[321928496,1712639451035,-500.0,0.00036438,5]
[321928498,1712639451045,-597.89,0.00036438,5]
[321928499,1712639451055,-500.0,0.00036438,5]
[321928500,1712639451064,-500.0,0.00036438,5]
[321928501,1712639451073,-300.0,0.00036438,5]
[321928502,1712639451083,-840.71,0.00036438,5]
[321928503,1712639451093,-500.0,0.00036438,5]
[321928504,1712639451102,-502.259176,0.00036438,5]
[321928505,1712639451111,-502.76,0.00036438,5]
[321928506,1712639451120,-253.54701778,0.00036438,5]
[321928507,1712639451129,-151.0,0.00036438,2]
[321928508,1712639451138,-500.0,0.00036438,5]
[321928509,1712639451148,-500.0,0.00036438,5]
[321928510,1712639451161,-508.37842726,0.00036438,5]
[321928511,1712639451170,-500.0,0.00036438,5]
[321928512,1712639451178,-913.71,0.00036438,5]
[321928513,1712639451193,-500.0,0.00036438,5]
[321928514,1712639451202,-359.71236778,0.00036438,5]
[321928515,1712639451212,-500.0,0.00036438,5]
[321928516,1712639451221,-1557.445902,0.00036438,2]
[321928517,1712639451230,-1557.445902,0.00036438,2]
[321928518,1712639451239,-500.0,0.00036438,5]
[321928519,1712639451249,-500.0,0.00036438,5]
[321928520,1712639451258,-540.23,0.00036438,5]
[321928521,1712639451267,-5915.35,0.00036438,5]
[321928522,1712639451276,-500.0,0.00036438,5]
[321928523,1712639451286,-151.0,0.00036438,2]
[321928524,1712639451295,-151.0,0.00036438,2]
[321928525,1712639451304,-500.0,0.00036438,5]
[321928526,1712639451313,-10395.06,0.00036438,5]
[321928527,1712639451323,-500.0,0.00036438,5]
[321928528,1712639451334,-3164.62,0.00036438,5]
[321928529,1712639451345,-500.0,0.00036438,5]
[321928530,1712639451355,-1615.82,0.00036438,5]
[321928531,1712639451365,-154.528505,0.00036438,2]
[321928532,1712639451374,-2100.67,0.00036438,5]
[321928533,1712639451383,-154.528505,0.00036438,2]
[321928534,1712639451392,-500.0,0.00036438,5]
[321928535,1712639451402,-500.0,0.00036438,5]
[321928536,1712639451411,-500.0,0.00036438,5]
[321928537,1712639451420,-1310.98,0.00036438,5]
[321928538,1712639451430,-500.0,0.00036438,5]
[321928539,1712639451442,-500.0,0.00036438,5]
[321928541,1712639451451,-625.99,0.00036438,5]
[321928543,1712639451461,-500.0,0.00036438,5]
[321928545,1712639451470,-500.0,0.00036438,5]
[321928547,1712639451480,-500.0,0.00036438,5]
[321928549,1712639451490,-266.080331,0.00036438,2]
[321928551,1712639451501,-993.73,0.00036438,5]
[321928553,1712639451510,-266.080331,0.00036438,2]
[321928555,1712639451519,-500.0,0.00036438,5]
[321928557,1712639451529,-653.71,0.00036438,5]
[321928559,1712639451538,-4755.24,0.00036438,5]
[321928561,1712639451548,-500.0,0.00036438,5]
[321928563,1712639451558,-2418.29,0.00036438,5]
[321928565,1712639451568,-509.14743441,0.00036438,5]
[321928567,1712639451578,-430.06899563,0.00036438,5]
[321928569,1712639451587,-1040.33,0.00036438,5]
[321928571,1712639451597,-500.0,0.00036438,5]
[321928573,1712639451606,-151.0,0.00036438,2]
[321928575,1712639451616,-2624.12,0.00036438,5]
[321928577,1712639451625,-5641.18,0.00036438,5]
[321928579,1712639451635,-1846.43,0.00036438,5]
[321928581,1712639451644,-500.0,0.00036438,5]
[321928583,1712639451653,-2504.96,0.00036438,5]
[321928584,1712639451662,-3365.38,0.00036438,5]
[321928585,1712639451671,-500.0,0.00036438,5]
[321928586,1712639451681,-817.39,0.00036438,5]
[321928587,1712639451692,-1252.57,0.00036438,5]
[321928588,1712639451701,-500.0,0.00036438,5]
[321928589,1712639451711,-500.0,0.00036438,5]
[321928590,1712639451720,-500.0,0.00036438,5]
[321928591,1712639451729,-839.1,0.00036438,5]
[321928592,1712639451739,-281.35973779,0.00036438,5]
[321928593,1712639451748,-500.0,0.00036438,5]
[321928594,1712639451757,-503.11976327,0.00036438,5]
[321928595,1712639451766,-500.0,0.00036438,5]
[321928596,1712639451775,-3128.32,0.00036438,5]
[321928598,1712639451784,-151.0,0.00036438,2]
[321928600,1712639451793,-500.0,0.00036438,5]
[321928602,1712639451803,-977.93,0.00036438,5]
[321928604,1712639451813,-500.0,0.00036438,5]
[321928606,1712639451825,-500.0,0.00036438,5]
[321928608,1712639451834,-500.0,0.00036438,5]
[321928610,1712639451844,-500.0,0.00036438,5]
[321928612,1712639451853,-28978.62,0.00036438,5]
[321928614,1712639451862,-6228.95,0.00036438,5]
[321928615,1712639451871,-647.996007,0.00036438,2]
[321928617,1712639451881,-1972.48,0.00036438,5]
[321928619,1712639451889,-466.06840421,0.00036438,5]
[321928621,1712639451901,-500.0,0.00036438,5]
[321928623,1712639451910,-500.0,0.00036438,5]
[321928626,1712639451919,-647.996007,0.00036438,2]
[321928628,1712639451928,-151.0,0.00036438,2]
[321928629,1712639451939,-151.0,0.00036438,2]
[321928637,1712639451999,-500.0,0.00036438,5]
[321928639,1712639452009,-500.0,0.00036438,5]
[321928641,1712639452018,-500.0,0.00036438,5]
[321928643,1712639452027,-6567.31,0.00036438,5]
[321928645,1712639452036,-151.0,0.00036438,2]
[321928647,1712639452044,-8899.76,0.00036438,5]
[321928649,1712639452053,-500.0,0.00036438,5]
[321928651,1712639452062,-1602.23,0.00036438,5]
[321928653,1712639452071,-500.0,0.00036438,5]
[321928655,1712639452081,-1086.3,0.00036438,5]
[321928657,1712639452090,-28390.72,0.00036438,5]
[321928659,1712639452100,-3658.23,0.00036438,5]
[321928661,1712639452109,-3094.83,0.00036438,5]
[321928663,1712639452118,-505.64,0.00036438,5]
[321928665,1712639452129,-500.0,0.00036438,5]
[321928667,1712639452139,-500.0,0.00036438,5]
[321928669,1712639452148,-151.0,0.00036438,2]
[321928671,1712639452157,-416.69818138,0.00036438,5]
[321928673,1712639452167,-1578.15,0.00036438,5]
[321928675,1712639452176,-1221.28,0.00036438,5]
[321928677,1712639452186,-2057.31,0.00036438,5]
[321928679,1712639452195,-1406.05,0.00036438,5]
[321928681,1712639452204,-500.0,0.00036438,5]
[321928683,1712639452213,-335.738886,0.00036438,2]
[321928685,1712639452222,-335.738886,0.00036438,2]
[321928687,1712639452231,-335.738886,0.00036438,2]
[321928689,1712639452240,-335.738886,0.00036438,2]
[321928691,1712639452248,-7973.23227667,0.00036545,7]
[321928693,1712639452257,-570.9887596,0.00036545,4]
[321928695,1712639452266,-801.15928841,0.00036545,4]
[321928697,1712639452275,-151.158428,0.00036545,2]
[321928699,1712639452284,-151.0,0.00036545,2]
[321928701,1712639452293,-151.0,0.00036545,2]
[321928703,1712639452302,-632.95,0.00036545,5]
[321928705,1712639452311,-2190.06,0.00036545,5]
[321928707,1712639452320,-500.0,0.00036545,5]
[321928709,1712639452329,-3438.14,0.00036545,5]
[321928711,1712639452338,-500.0,0.00036545,5]
[321928713,1712639452348,-500.0,0.00036545,5]
[321928715,1712639452357,-500.0,0.00036545,5]
[321928717,1712639452366,-500.0,0.00036545,5]
[321928719,1712639452375,-500.0,0.00036545,5]
[321928721,1712639452384,-1052.79,0.00036545,5]
[321928722,1712639452393,-500.0,0.00036545,5]
[321928724,1712639452402,-556.6,0.00036545,5]
[321928726,1712639452411,-500.0,0.00036545,5]
[321928729,1712639452421,-500.0,0.00036545,5]
[321928730,1712639452430,-500.0,0.00036545,5]
[321928732,1712639452439,-705.17,0.00036545,5]
[321928734,1712639452450,-1840.23,0.00036545,5]
[321928736,1712639452459,-500.0,0.00036545,5]
[321928738,1712639452468,-500.0,0.00036545,5]
[321928740,1712639452476,-500.0,0.00036545,5]
[321928742,1712639452485,-500.0,0.00036545,5]
[321928744,1712639452494,-500.0,0.00036545,5]
[321928746,1712639452504,-500.0,0.00036545,5]
[321928748,1712639452513,-500.0,0.00036545,5]
[321928750,1712639452522,-500.0,0.00036545,5]
[321928752,1712639452531,-500.0,0.00036546,5]
[321928754,1712639452540,-151.0,0.00036546,2]
[321928756,1712639452548,-500.0,0.00036546,5]
[321928758,1712639452558,-500.0,0.00036546,5]
[321928760,1712639452566,-826.12,0.00036546,5]
[321928762,1712639452576,-500.0,0.00036546,5]
[321928764,1712639452584,-595.56,0.00036546,5]
[321928766,1712639452594,-1140.37,0.00036546,5]
[321928768,1712639452603,-500.0,0.00036546,5]
[321928770,1712639452612,-500.0,0.00036546,5]
[321928772,1712639452621,-500.0,0.00036546,5]
[321928774,1712639452630,-151.0,0.00036546,2]
[321928776,1712639452640,-1952.48,0.00036546,5]
[321928778,1712639452649,-500.0,0.00036546,5]
[321928780,1712639452658,-500.0,0.00036546,5]
[321928782,1712639452668,-3471.98,0.00036546,5]
[321928784,1712639452677,-500.0,0.00036546,5]
[321928786,1712639452686,-500.0,0.00036546,5]
[321928788,1712639452695,-218.389366,0.00036546,2]
[321928790,1712639452704,-500.0,0.00036546,5]
[321928792,1712639452714,-515.12,0.00036546,5]
[321928794,1712639452723,-151.0,0.00036546,2]
[321928796,1712639452732,-500.0,0.00036546,5]
[321928798,1712639452741,-500.0,0.00036547,5]
[321928800,1712639452750,-500.0,0.00036547,5]
[321928802,1712639452759,-500.0,0.00036547,5]
[321928804,1712639452768,-500.0,0.00036547,5]
[321928806,1712639452777,-500.0,0.00036547,5]
[321928808,1712639452786,-500.0,0.00036547,5]
[321928810,1712639452795,-500.0,0.00036547,5]
[321928812,1712639452804,-500.0,0.00036547,5]
[321928814,1712639452817,-500.0,0.00036547,5]
[321928816,1712639452826,-160.189686,0.00036547,2]
[321928818,1712639452834,-151.0,0.00036547,2]
[321928820,1712639452843,-151.0,0.00036547,2]
[321928822,1712639452853,-154.528505,0.00036547,2]
[321928824,1712639452861,-154.528505,0.00036547,2]
[321928826,1712639452870,-151.0,0.00036547,2]
[321928828,1712639452879,-647.996007,0.00036547,2]
[321928830,1712639452888,-647.996007,0.00036547,2]
[321928832,1712639452898,-151.0,0.00036547,2]
[321928839,1712639452954,-151.0,0.00036547,2]